Cogmind - Beta 13 @@@ ROGUE MODE // 2024.04.07 @ 11:52:28 Player: BoomBlip Result: Destroyed by S-10 Pest with Light Assault Rifle Performance ------------- Evolutions (0) 0 Regions Visited (4) 800 Robots Destroyed (10) 50 Value Destroyed (303) 303 Prototype IDs (2) 40 Alien Tech Used (0) 0 Bonus (325) 325 TOTAL SCORE: 1518 Bonus ------- Follower Combat Kills 25 Aligned with FarCom 300 Cogmind --------- Core Integrity 0/250 Matter 300/300 Energy 100/100 System Corruption 10% Temperature Cool (0) Movement Core (50) Location -9/Mines Parts ------- > --- POWER (1) -------- (None) > --- PROPULSION (2) --- (None) > --- UTILITY (2) ------ (None) > --- WEAPON (2) ------- (None) > --- INVENTORY (5) ---- Ion Engine Cooling System Large Storage Unit Hardened Light Armor Plating Improved Assault Rifle Peak State ------------ > --- POWER ------------ Improved Ion Engine > --- PROPULSION ------- Wheel Compact Wheel > --- UTILITY ---------- Medium Storage Unit Supersonic Drone Bay > --- WEAPON ----------- Improved Assault Rifle Enhanced Flamer > --- INVENTORY -------- Ion Engine Ion Engine Cooling System Small Storage Unit Targeting Computer Hardened Light Armor Plating EM Pulse Gun Improved Assault Rifle Improved Assault Rifle Grenade Launcher [Rating: 20] Favorites ----------- Power Improved Ion Engine Engine Improved Ion Engine Propulsion Aluminum Leg Leg Aluminum Leg Wheel Compact Wheel Utility Medium Storage Unit Device Supersonic Drone Bay Storage Medium Storage Unit Protection Hardened Light Armor Plating Weapon Improved Assault Rifle Energy Gun Small Laser Ballistic Gun Improved Assault Rifle Special Weapon Enhanced Flamer Build | -11 -10 -10 -10 -9 ------- Run | Yrd Mat Min Exi Min Slots Evolved . | . . . . . Power . | . . . . . Propulsion . | . . . . . Utility . | . . . . . Weapon . | . . . . . Parts Attached 11 | . 5 4 2 . Power 1 | . . 1 . . Engine 1 | . . 1 . . Core . | . . . . . Reactor . | . . . . . Propulsion 3 | . 2 1 . . Treads . | . . . . . Leg . | . . . . . Wheel 3 | . 2 1 . . Hover . | . . . . . Flight . | . . . . . Utility 4 | . 1 1 2 . Device 1 | . . . 1 . Storage 2 | . . 1 1 . Processor . | . . . . . Hackware . | . . . . . Protection 1 | . 1 . . . Artifact . | . . . . . Weapon 3 | . 2 1 . . Energy Gun . | . . . . . Energy Cannon . | . . . . . Ballistic Gun 2 | . 2 . . . Ballistic Cannon . | . . . . . Launcher . | . . . . . Special Weapon 1 | . . 1 . . Impact Weapon . | . . . . . Slashing Weapon . | . . . . . Piercing Weapon . | . . . . . Special Melee Weapon . | . . . . . Unidentified Prototypes 2 | . 1 . 1 . Parts Lost 5 | . . 1 . 4 Power 1 | . . . . 1 Propulsion 2 | . . 1 . 1 Utility . | . . . . . Weapon 2 | . . . . 2 Highest Loss Streak 4 | . . 1 . 4 To Critical Strikes . | . . . . . Average Slot Usage (%) 90 | . 86 98 100 54 Engine 13 | . 14 14 14 7 Leg 9 | . 26 . . . Wheel 17 | . 1 26 28 15 Device 3 | . . . 7 8 Storage 13 | . 14 14 14 8 Protection 6 | . 1 14 7 . Energy Gun 4 | . 13 . . . Ballistic Gun 14 | . 14 16 14 5 Special Weapon 8 | . . 11 14 8 Naked Turns 45 | . . . . 45 Heaviest Build 53 | 11 19 27 53 53 Greatest Support 26 | 20 26 26 26 26 Greatest Overweight (x) 4 | . . 1 2 4 Average Overweight (x) . | . . . . . Largest Inventory Capacity 20 | . 8 10 20 20 Average Capacity 10 | . 8 9 12 12 Most Carried 11 | . 7 10 11 11 Average Carried 8 | . 6 9 10 8 Final Capacity 20 | 8 8 10 20 5 Final Carried 11 | 6 6 10 11 5 Class Distribution -------------------- 100% | Mutant Dominant Class ---------------- Mutant | -10/Materials Mutant | -10/Mines Mutant | -10/Exiles Mutant | -9/Mines Resources | -11 -10 -10 -10 -9 ----------- Run | Yrd Mat Min Exi Min Matter Collected 438 | 200 57 172 . 9 Remotely . | . . . . . Salvage Created 323 | . 182 141 . . Parts 18 | . 12 6 . . Haulers Intercepted . | . . . . . Recyclers Shooed 1 | . . 1 . . Parts Field Recycled . | . . . . . Retrieved Matter . | . . . . . Parts Self-Destructed . | . . . . . Prevented . | . . . . . Kills | -11 -10 -10 -10 -9 ------- Run | Yrd Mat Min Exi Min Combat Hostiles Destroyed 10 | . 6 4 . . Guns 8 | . 6 2 . . Cannons 2 | . . 2 . . Classes Destroyed 3 | . 2 1 . . Swarmer 3 | . 3 . . . Grunt 5 | . 3 2 . . Sentry 2 | . . 2 . . Best Kill Streak 3 | . 3 2 . . Combat Bots Only 3 | . 3 2 . . Max Kills in Single Turn 1 | . 1 1 . . Gunslinging . | . . . . . Exploded . | . . . . . Melee . | . . . . . Uniques/NPCs Destroyed . | . . . . . Combat | -11 -10 -10 -10 -9 -------- Run | Yrd Mat Min Exi Min Hostile Shots Fired 85 | . 29 37 . 19 Missed 24 | . 12 10 . 2 Damage Taken 896 | . 161 393 . 342 Core 254 | . 25 56 . 173 Absorbed by Shields . | . . . . . Core Remaining (%) 100 | 100 . . . . Volleys Fired 37 | . 20 16 . 1 Largest 2 | . 2 2 . 1 Hottest 103 | . 60 103 . 80 Shots Fired 73 | . 40 32 . 1 Gun 56 | . 40 16 . . Cannon . | . . . . . Launcher . | . . . . . Special 17 | . . 16 . 1 Kinetic 36 | . 20 16 . . Thermal 37 | . 20 16 . 1 Explosive . | . . . . . Electromagnetic . | . . . . . Robot Hit Streak 14 | . 6 14 . . Robot Miss Streak 3 | . 3 1 . 1 Penetration Max . | . . . . . Secondary Targets 3 | . 3 . . . Max Gunslinging Chain 1 | . 1 . . . Shots Hit Robots 50 | . 23 27 . . Core Hits 21 | . 9 12 . . Critical Kills . | . . . . . Critical Parts Destroyed . | . . . . . Critical Strikes . | . . . . . Melee Attacks . | . . . . . Impact . | . . . . . Slashing . | . . . . . Piercing . | . . . . . Sneak Attacks . | . . . . . Combat Hostiles . | . . . . . Follow-up Attacks . | . . . . . Damage Inflicted 650 | . 292 350 . 8 Guns 513 | . 292 221 . . Cannons . | . . . . . Explosions . | . . . . . Melee . | . . . . . Ramming 8 | . . . . 8 Kinetic 403 | . 182 221 . . Thermal 239 | . 110 129 . . Explosive . | . . . . . Electromagnetic . | . . . . . Impact . | . . . . . Slashing . | . . . . . Piercing . | . . . . . Highest Corruption 10 | . . . . 10 Average Corruption 9 | . . . . 9 Corruption Purged . | . . . . . Corruption Blocked . | . . . . . Effects 2 | . . . . 2 Heat Flow Errors 1 | . . . . 1 Misdirections 1 | . . . . 1 Overload Shots . | . . . . . Overflow Damage . | . . . . . Projectiles . | . . . . . Explosions . | . . . . . Melee . | . . . . . Knockbacks . | . . . . . Impact . | . . . . . Kinetic . | . . . . . Secondary . | . . . . . Self-Inflicted Damage 4 | . . . . 4 Shots . | . . . . . Rammed 1 | . . . . 1 Targets Rammed 1 | . . . . 1 Kicked . | . . . . . Crushed . | . . . . . Highest Temperature 405 | . 24 405 . 149 Average Temperature 136 | . 14 173 . 56 Received Heat Transfer 274 | . 54 180 . 40 Effects 4 | . . 4 . . Shutdowns 2 | . . 2 . . Interference 1 | . . 1 . . Matter Decay 1 | . . 1 . . Siege Activations . | . . . . . Robots Corrupted . | . . . . . Combat Hostiles . | . . . . . Parts Fried . | . . . . . Impact Corruptions . | . . . . . Robots Melted . | . . . . . Combat Hostiles . | . . . . . Parts Melted 1 | . . 1 . . Heat Transferred 1210 | . 250 960 . . Parts Sabotaged . | . . . . . Parts Stolen . | . . . . . Parts Stripped . | . . . . . Power Chain Reactions . | . . . . . Alert | -11 -10 -10 -10 -9 ------- Run | Yrd Mat Min Exi Min Peak Influence 219 | . 219 201 . . Initial 85 | . . 85 . . Average 99 | . 95 142 . . Maximum Alert Level 1 | . 1 1 . . Low Security (%) 88 | . 82 90 . 100 Level 1 11 | . 17 9 . . Level 2 . | . . . . . Level 3 . | . . . . . Level 4 . | . . . . . Level 5 . | . . . . . High Security . | . . . . . Max Security . | . . . . . Squads Dispatched 1 | . 1 . . . Investigation 1 | . 1 . . . Extermination . | . . . . . Reinforcement . | . . . . . Assault . | . . . . . Garrison . | . . . . . Intercept . | . . . . . Searches Triggered . | . . . . . Construction Impeded . | . . . . . Haulers Reinforced . | . . . . . Active Scanning Responses . | . . . . . Cargo Convoy Interrupts . | . . . . . Stealth | -11 -10 -10 -10 -9 --------- Run | Yrd Mat Min Exi Min Distress Signals . | . . . . . Communications Jammed . | . . . . . Distress Signals . | . . . . . Times Spotted 36 | . 12 6 . 18 Peak Tracking Total 15 | . 4 2 . 15 Tactical Retreats 3 | . 1 . . 2 Traps | -11 -10 -10 -10 -9 ------- Run | Yrd Mat Min Exi Min Traps Triggered 1 | . 1 . . . Indirectly . | . . . . . Trap Hack Attempts . | . . . . . Triggered . | . . . . . Disarmed . | . . . . . Reprogrammed . | . . . . . Reused . | . . . . . Traps Extracted . | . . . . . Installed . | . . . . . Triggered . | . . . . . Machines | -11 -10 -10 -10 -9 ---------- Run | Yrd Mat Min Exi Min Machines Disabled . | . . . . . Max in Single Turn . | . . . . . Machines Repaired . | . . . . . Machines Dismantled . | . . . . . Machines Sabotaged . | . . . . . Overloaded Fab Kills . | . . . . . Hacking | -11 -10 -10 -10 -9 --------- Run | Yrd Mat Min Exi Min Machines Accessed 8 | . 6 . 2 . Terminals 5 | . 5 . . . Fabricators . | . . . . . Repair Stations . | . . . . . Recycling Units 1 | . 1 . . . Scanalyzers . | . . . . . Garrison Access . | . . . . . Total Hacks 16 | . 13 . 3 . Successful 8 | . 5 . 3 . Failed 8 | . 8 . . . Catastrophic 2 | . 2 . . . Database Lockouts . | . . . . . Manual 11 | . 10 . 1 . Terminals 10 | . 10 . . . Fabricators . | . . . . . Repair Stations . | . . . . . Recycling Units 3 | . 3 . . . Scanalyzers . | . . . . . Garrison Access . | . . . . . Terminal Hacks 3 | . . . 3 . Record 3 | . . . 3 . Fabricator Hacks . | . . . . . Repair Station Hacks . | . . . . . Recycling Unit Hacks 2 | . 2 . . . Recycle Component 1 | . 1 . . . Process 1 | . 1 . . . Scanalyzer . | . . . . . Garrison Access Hacks . | . . . . . Unauthorized Hacks 3 | . 3 . . . Terminals 3 | . 3 . . . Botnet 3 | . 3 . . . Fabricators . | . . . . . Repair Stations . | . . . . . Recycling Units . | . . . . . Scanalyzers . | . . . . . Garrison Access . | . . . . . Data Cores Recovered . | . . . . . Used . | . . . . . Hacking Detections 5 | . 5 . . . Full Trace Events . | . . . . . Feedback Events . | . . . . . Feedback Blocked . | . . . . . Robot Schematics Acquired . | . . . . . Robots Built . | . . . . . Authchips . | . . . . . Time . | . . . . . Total Robot Build Rating . | . . . . . Part Schematics Acquired . | . . . . . Parts Built . | . . . . . Authchips . | . . . . . Time . | . . . . . Total Part Build Rating . | . . . . . Parts Repaired . | . . . . . Time . | . . . . . Parts Recycled 1 | . 1 . . . Recycled Matter 88 | . 88 . . . Retrieved Matter . | . . . . . Retrieved Components . | . . . . . Parts Scanalyzed . | . . . . . Part Schematics Acquired . | . . . . . Parts Damaged . | . . . . . Bothacking | -11 -10 -10 -10 -9 ------------ Run | Yrd Mat Min Exi Min Used RIF Installer . | . . . . . Robots Hacked . | . . . . . Non-combat . | . . . . . Combat . | . . . . . Robot Hacks Applied . | . . . . . Relay Couplers Released . | . . . . . Fabnet Peak Effective % . | . . . . . Robots Rewired 1 | . . 1 . . Allies Hacked . | . . . . . Hacks Repelled . | . . . . . Allies | -11 -10 -10 -10 -9 -------- Run | Yrd Mat Min Exi Min Total Allies 1 | . . 1 . . Largest Group 1 | . . 1 . . Highest-Rated Group 16 | . . 16 . . Highest-Rated Ally 16 | . . 16 . . Total Orders . | . . . . . Ally Attacks 2 | . . 2 . . Total Damage 18 | . . 18 . . Kills 1 | . . 1 . . Allies Corrupted . | . . . . . Allies Melted . | . . . . . Intel | -11 -10 -10 -10 -9 ------- Run | Yrd Mat Min Exi Min Robot Analysis Total . | . . . . . Derelict Logs Recovered 2 | . . 1 . 1 Drone Launches . | . . . . . Drone Recoveries . | . . . . . Exploration | -11 -10 -10 -10 -9 ------------- Run | Yrd Mat Min Exi Min Turns Passed 984 | . 330 258 300 96 Spaces Moved 819 | 1 217 185 288 128 Core 89 | . . . . 89 Treads . | . . . . . Legs 208 | 1 207 . . . Wheels 522 | . 10 185 288 39 Hover . | . . . . . Flight . | . . . . . Fastest Speed 50 | 120 90 90 90 50 Average Speed 101 | 120 118 100 102 72 Slowest Speed 140 | 120 120 115 120 140 Overloaded Moves . | . . . . . Propulsion Burnouts . | . . . . . Robots Hopped . | . . . . . Cave-ins Triggered . | . . . . . Exploration Rate (%) 31 | 2 38 32 61 23 Regions Visited 4 Branch Regions 3 Pre-discovered Areas . | . . . . . Known Exits Taken . | . . . . . Unknown Exits Taken 4 | 1 1 1 1 . Scrap Searched 2 | . . 1 . 1 Spaces Dug . | . . . . . Terrain Destroyed . | . . . . . Melee . | . . . . . Projectile . | . . . . . AOE . | . . . . . Terrain Rammed . | . . . . . Walls Destroyed . | . . . . . Machines Disabled . | . . . . . Actions | -11 -10 -10 -10 -9 --------- Run | Yrd Mat Min Exi Min Total 884 | . 250 212 292 130 Wait 2 | . . 2 . . Move 815 | . 216 184 287 128 Hop . | . . . . . Pick Up 8 | . 4 3 1 . Fast Attach 5 | . 3 1 1 . Attach 3 | . 2 1 . . Detach 1 | . . 1 . . Swap 3 | . . 2 1 . Drop 8 | . 5 1 2 . Fire 37 | . 20 16 . 1 Melee . | . . . . . Ram 1 | . . . . 1 Kick . | . . . . . Crush . | . . . . . Escape Stasis . | . . . . . Rewire 1 | . . 1 . . Trap . | . . . . . Miscellaneous . | . . . . . Route ------- -11/Scrapyard -10/Materials -10/Mines -10/Exiles -9/Mines History --------- Turn | Location | Event 1 | -11/Scrapyard | Discovered new exit (range 0) 1 | -11/Scrapyard | Entered Materials 290 | -10/Materials | Discovered new exit (range 15) 305 | -10/Materials | Build established: Mutant 331 | -10/Materials | Entered Mines 344 | -10/Mines | Met a Derelict bent on vengeance 368 | -10/Mines | A weapon hastily lodged in a ceiling crevice suddenly fell to the ground 572 | -10/Mines | Learned Materials emergency access door positions 585 | -10/Mines | Deemed a non-threat by the Exiles lab entrance 585 | -10/Mines | Discovered new exit (range 5) 589 | -10/Mines | Entered Exiles 615 | -10/Exiles | Met 8R-AWN 633 | -10/Exiles | Met EX-HEX 668 | -10/Exiles | Met EX-BIN 680 | -10/Exiles | Aligned with FarCom system 681 | -10/Exiles | Given EX-Vault access code 727 | -10/Exiles | Opened EX-Vault 737 | -10/Exiles | Found Prototype Device 737 | -10/Exiles | Identified Supersonic Drone Bay 760 | -10/Exiles | Warned to stay clear of 0b10 Research branches 785 | -10/Exiles | Met EX-DEC 879 | -10/Exiles | Discovered new exit (range 10) 889 | -10/Exiles | Left Exiles lab with Supersonic Drone Bay 889 | -10/Exiles | Entered Mines 914 | -9/Mines | Assembled infested the area 919 | -9/Mines | Assisted by a Guerilla fighting off Assembled 940 | -9/Mines | System corruption reached 10% 940 | -9/Mines | Released all parts (3) 941 | -9/Mines | Core integrity fell below 50% 960 | -9/Mines | Learned Materials terminal intel 969 | -9/Mines | Core integrity fell below 20% 970 | -9/Mines | Received a Rocket Launcher from a helpful Derelict 971 | -9/Mines | Lost 4 parts (1p1n2w) 985 | -9/Mines | Destroyed by S-10 Pest with Light Assault Rifle Last Messages --------------- 00952_ Found 24 Matter. 00953_ Acquired 9 matter. 00960_ Acquired derelict log, extracted data. Data stored: Materials terminal intel. 00964_ A derelict emerges from the shadows. 00965_ BM-E31(g): "Some of my friends down here think you need a mining laser when you travel the depths." 00966_ BM-E31(g): "Pshh... whatever." 00967_ BM-E31(g): "Everyone knows a good old rocket launcher goes a long way." 00968_ BM-E31(g): "Need to get rid of a swarm? Done. Need a big hole in the wall? Done." 00969_ BM-E31(g): "Need a small hole in the wall? Leave that to the mining laser wimps, I say!" 00969_ as-51030 destroyed. 00970_ BM-E31(g): "Would you like a rocket launcher? I know I would if I were you, so I'm going to lend you mine." 00970_ BM-E31(g) slips back into the shadows. 00976_ System corrupted: Heat flow error (+174). 00985_ Slammed into S-10 Pest. Map ----- +----------------------------------------------------+ | ??????????????????????????????????????????????? | | ??????????????????????????????????????????????? | | ??????????????????????????????????????????????? | | ??????????????????????????????????????????????? | | ??????????????????????????????????????????????? | | ??????????????????????????????????????????????? | | ??????????????????????????????????????????????? | | ??????????????????????????????????????????????? | | ??????????????????????????????????????????????? | | ??????????????????????????????????????????????? | | ??????????????????????????????????????????????? | | ??????????????????????????????????????????????? | | ??????????????????????????????????????????????? | | ??????????????????????????????????????????????? | | ??????????????????????????????????????????????? | | ??????????????????????????##??????????????????? | | ????????????????????????? #??????????????????? | | ???????????????????# ??? ##???s?????????????? | | ???????????????????# """ ???s?s????????????? | | ???????????????????# """ #???s??????????????? | | ???????????????????# % #??????????????????? | | ???????????????????# """ #??????????????????? | | ???????????????????# """ #??????????????????? | | ???????????????????# """s ???????????????????? | | ???????????????????? sss ?????????????????????? | | ?????????????????????#@#??????????????????????? | | ?????????????????????# #??????????????????????? | | ?????????????????????# #??????????????????????? | | ?????????????????????#a########???????????????? | | ?????????????????????# a #???????????????? | | ?????????????????????######## ##########??????? | | ????????????????????????????# #??????? | | ????????????????????????????########## #??????? | | ????????????????????????????????????## #??????? | | ???????????????????????????????????## ##?????? | | ??????????????????????????????????## #?????? | | ??????????????????????????????????# #?????? | | ??????????????????????????????????# ##????? | | ??????????????????????????????????# ] ####?? | | ??????????????????????????????????## % #?? | | ???????????????????????????????????## ### | | ????????????????????????????????????## | | ?????????????????????????????????????######## # | | ????????????????????????????????????????????# # | | ????????????????????????????????????????????# # | | ????????????????????????????????????????????# # | | ????????????????????????????????????????????# # | | ????????????????????????????????????????????# # | | ????????????????????????????????????????????# # | | ????????????????????????????????????????????# # | +----------------------------------------------------+ Best States ------------- Heat Dissipation 25 Energy Generation 12 Energy Capacity 265 Matter Stores 300 Matter Capacity 300 Sight Range 16 Terrain Scan Density 10 Armor Coverage 150 Evasion (%) 55 Item Schematics ----------------- None Robot Schematics ------------------ None Fabricated ------------ Nothing Alien Tech Used ----------------- None Achievements -------------- None Challenges ------------ None Game ------ Seed BladeGuidedAutobeam Manual? 0 Play Time 00:15:23 Cumulative 94.1 hours Start 2024.04.07 @ 11:30:11 End 2024.04.07 @ 11:52:28 Sessions 1 Manual Loads 0 Difficulty Rogue Special Mode None Game No. 141 Rogue 129 Adventurer 10 Explorer 2 Win Type - Total 1 Types 1/0/0/0/0/0/0/0/0 Lore% 26 Gallery% 54 Achievement% 40 Wizard Run 0 Options --------- Layout 0 ASCII 0 Keyboard 0 Movement Arrows Keybinds 0 Fullscreen 1 Font 36/Smallcaps Map View 76x50 Zoom Use 0% Tactical HUD 1 Map Filters NONE Filters NONE Steam 1 RUN: 074b8860-71a1-4f60-bfce-8916d3a4ab8d